[Event "Titled Tuesday Blitz July 05 Early 2022"]
[White "Sjugirov, Sanan"]
[Black "Dubov, Daniil"]
[WhiteFideId "4189302"]
[BlackFideId "24126055"]
[WhiteElo "2609"]
[BlackElo "2791"]
[Result "1/2-1/2"]
[Round "09"]
[TimeControl "180+1"]
[Date "2022.07.05"]
[WhiteClock "0:00:05"]
[BlackClock "0:00:07"]

1. e4 {[%clk 0:03:00]}  e5 {[%clk 0:02:59]} 2. Nf3 {[%clk 0:03:01]}  Nc6 {[%clk 0:03:00]} 3. Bb5 {[%clk 0:03:01]}  a6 {[%clk 0:02:59]} 4. Ba4 {[%clk 0:03:02]}  Nf6 {[%clk 0:03:00]} 5. Nc3 {[%clk 0:03:02]}  Be7 {[%clk 0:02:47]} 6. Bxc6 {[%clk 0:02:55]}  dxc6 {[%clk 0:02:46]} 7. d3 {[%clk 0:02:51]}  Qd6 {[%clk 0:02:31]} 8. h3 {[%clk 0:02:51]}  Be6 {[%clk 0:02:29]} 9. Be3 {[%clk 0:02:41]}  Nd7 {[%clk 0:02:28]} 10. a3 {[%clk 0:02:36]}  c5 {[%clk 0:02:22]} 11. O-O {[%clk 0:02:35]}  O-O {[%clk 0:02:20]} 12. Nd2 {[%clk 0:02:30]}  Rad8 {[%clk 0:02:06]} 13. Nc4 {[%clk 0:02:22]}  Bxc4 {[%clk 0:01:58]} 14. dxc4 {[%clk 0:02:23]}  c6 {[%clk 0:01:24]} 15. Qxd6 {[%clk 0:02:10]}  Bxd6 {[%clk 0:01:23]} 16. Rad1 {[%clk 0:02:11]}  Be7 {[%clk 0:01:23]} 17. Ne2 {[%clk 0:02:12]}  Nf6 {[%clk 0:01:19]} 18. f3 {[%clk 0:02:12]}  Rxd1 {[%clk 0:01:09]} 19. Rxd1 {[%clk 0:02:12]}  Rc8 {[%clk 0:01:10]} 20. Nc1 {[%clk 0:02:10]}  Kf8 {[%clk 0:01:09]} 21. Kf1 {[%clk 0:02:08]}  Ke8 {[%clk 0:01:08]} 22. Ke2 {[%clk 0:02:08]}  Nd7 {[%clk 0:01:06]} 23. Nd3 {[%clk 0:02:07]}  f6 {[%clk 0:01:00]} 24. a4 {[%clk 0:02:06]}  a5 {[%clk 0:00:58]} 25. b3 {[%clk 0:02:06]}  b6 {[%clk 0:00:57]} 26. h4 {[%clk 0:02:06]}  Nf8 {[%clk 0:00:56]} 27. h5 {[%clk 0:02:05]}  Ne6 {[%clk 0:00:55]} 28. Rh1 {[%clk 0:02:03]}  h6 {[%clk 0:00:53]} 29. g3 {[%clk 0:02:03]}  Bd6 {[%clk 0:00:47]} 30. f4 {[%clk 0:02:03]}  Ke7 {[%clk 0:00:47]} 31. Kf3 {[%clk 0:02:03]}  Nd8 {[%clk 0:00:43]} 32. Ne1 {[%clk 0:01:57]}  Nf7 {[%clk 0:00:35]} 33. Ng2 {[%clk 0:01:57]}  Rd8 {[%clk 0:00:34]} 34. Nh4 {[%clk 0:01:57]}  Ke6 {[%clk 0:00:34]} 35. Ng6 {[%clk 0:01:50]}  Bf8 {[%clk 0:00:21]} 36. Rf1 {[%clk 0:01:28]}  Be7 {[%clk 0:00:20]} 37. Ke2 {[%clk 0:01:06]}  Nh8 {[%clk 0:00:17]} 38. Nh4 {[%clk 0:01:03]}  Nf7 {[%clk 0:00:16]} 39. Rh1 {[%clk 0:00:54]}  Nd6 {[%clk 0:00:15]} 40. Kf3 {[%clk 0:00:54]}  Nf7 {[%clk 0:00:16]} 41. Bc1 {[%clk 0:00:33]}  Bf8 {[%clk 0:00:14]} 42. Ng6 {[%clk 0:00:32]}  Bd6 {[%clk 0:00:13]} 43. Rd1 {[%clk 0:00:32]}  Nh8 {[%clk 0:00:08]} 44. Nh4 {[%clk 0:00:23]}  Nf7 {[%clk 0:00:08]} 45. Ng6 {[%clk 0:00:08]}  Nh8 {[%clk 0:00:07]} 46. f5+ {[%clk 0:00:04]}  Kd7 {[%clk 0:00:06]} 47. Be3 {[%clk 0:00:03]}  Nxg6 {[%clk 0:00:05]} 48. fxg6 {[%clk 0:00:03]}  Ke6 {[%clk 0:00:05]} 49. Kg4 {[%clk 0:00:03]}  Ra8 {[%clk 0:00:05]} 50. Rf1 {[%clk 0:00:03]}  Rb8 {[%clk 0:00:05]} 51. Kf3 {[%clk 0:00:02]}  Ra8 {[%clk 0:00:05]} 52. g4 {[%clk 0:00:02]}  Be7 {[%clk 0:00:05]} 53. Ke2 {[%clk 0:00:03]}  Bd6 {[%clk 0:00:06]} 54. Bd2 {[%clk 0:00:03]}  Be7 {[%clk 0:00:06]} 55. Bc1 {[%clk 0:00:03]}  Bd6 {[%clk 0:00:06]} 56. Bd2 {[%clk 0:00:03]}  Be7 {[%clk 0:00:07]} 57. Bc1 {[%clk 0:00:04]}  Bd6 {[%clk 0:00:07]} 58. Bd2 {[%clk 0:00:05]} 1/2-1/2


[Site "https://www.chess.com"]

[Event "Titled Tuesday Blitz July 05 Early 2022"]
[White "Svane, Rasmus"]
[Black "Rostovtsev, Dmitry"]
[WhiteFideId "4657101"]
[BlackFideId "34278320"]
[WhiteElo "2674"]
[BlackElo "2232"]
[Result "1-0"]
[Round "09"]
[TimeControl "180+1"]
[Date "2022.07.05"]
[WhiteClock "0:00:16"]
[BlackClock "0:00:03"]

1. Nf3 {[%clk 0:03:00]}  Nf6 {[%clk 0:02:59]} 2. g3 {[%clk 0:03:00]}  g6 {[%clk 0:03:00]} 3. Bg2 {[%clk 0:03:01]}  Bg7 {[%clk 0:03:01]} 4. O-O {[%clk 0:03:01]}  O-O {[%clk 0:03:00]} 5. d4 {[%clk 0:03:02]}  d6 {[%clk 0:03:01]} 6. Re1 {[%clk 0:03:02]}  Nbd7 {[%clk 0:03:00]} 7. e4 {[%clk 0:03:02]}  e5 {[%clk 0:03:00]} 8. Nc3 {[%clk 0:03:03]}  c6 {[%clk 0:02:59]} 9. a4 {[%clk 0:03:02]}  a5 {[%clk 0:02:58]} 10. Be3 {[%clk 0:02:59]}  exd4 {[%clk 0:02:56]} 11. Bxd4 {[%clk 0:02:55]}  Re8 {[%clk 0:02:56]} 12. Nd2 {[%clk 0:02:55]}  Ne5 {[%clk 0:02:52]} 13. h3 {[%clk 0:02:30]}  Be6 {[%clk 0:02:46]} 14. f4 {[%clk 0:02:29]}  Nc4 {[%clk 0:02:45]} 15. Nxc4 {[%clk 0:02:29]}  Bxc4 {[%clk 0:02:45]} 16. Qd2 {[%clk 0:02:29]}  d5 {[%clk 0:02:24]} 17. b3 {[%clk 0:02:17]}  Ba6 {[%clk 0:02:20]} 18. exd5 {[%clk 0:02:04]}  cxd5 {[%clk 0:02:07]} 19. Rxe8+ {[%clk 0:02:01]}  Qxe8 {[%clk 0:02:07]} 20. Re1 {[%clk 0:01:54]}  Qd8 {[%clk 0:01:29]} 21. Kh2 {[%clk 0:01:39]}  Ne4 {[%clk 0:01:04]} 22. Qe3 {[%clk 0:01:03]}  Nxc3 {[%clk 0:00:47]} 23. Bxg7 {[%clk 0:01:02]}  Kxg7 {[%clk 0:00:47]} 24. Qxc3+ {[%clk 0:01:01]}  d4 {[%clk 0:00:48]} 25. Qd2 {[%clk 0:00:54]}  Qb6 {[%clk 0:00:34]} 26. Re5 {[%clk 0:00:50]}  Rd8 {[%clk 0:00:29]} 27. Qxa5 {[%clk 0:00:37]}  Qxa5 {[%clk 0:00:17]} 28. Rxa5 {[%clk 0:00:38]}  d3 {[%clk 0:00:17]} 29. cxd3 {[%clk 0:00:37]}  Rxd3 {[%clk 0:00:17]} 30. b4 {[%clk 0:00:34]}  Bc4 {[%clk 0:00:18]} 31. Bxb7 {[%clk 0:00:30]}  Rd2+ {[%clk 0:00:18]} 32. Kg1 {[%clk 0:00:30]}  Rb2 {[%clk 0:00:16]} 33. b5 {[%clk 0:00:29]}  g5 {[%clk 0:00:16]} 34. fxg5 {[%clk 0:00:28]}  Kg6 {[%clk 0:00:17]} 35. Bc6 {[%clk 0:00:24]}  Kxg5 {[%clk 0:00:16]} 36. b6+ {[%clk 0:00:24]}  f5 {[%clk 0:00:12]} 37. Bb5 {[%clk 0:00:23]}  Bd5 {[%clk 0:00:11]} 38. Ra7 {[%clk 0:00:22]}  f4 {[%clk 0:00:11]} 39. gxf4+ {[%clk 0:00:20]}  Kxf4 {[%clk 0:00:11]} 40. Rd7 {[%clk 0:00:18]}  Bf3 {[%clk 0:00:07]} 41. b7 {[%clk 0:00:15]}  Rb1+ {[%clk 0:00:02]} 42. Kf2 {[%clk 0:00:15]}  Rb2+ {[%clk 0:00:03]} 43. Ke1 {[%clk 0:00:16]}  Ke3 {[%clk 0:00:03]} 44. Re7+ {[%clk 0:00:15]}  Be4 {[%clk 0:00:03]} 45. Rxe4+ {[%clk 0:00:15]}  Kxe4 {[%clk 0:00:02]} 46. b8=Q {[%clk 0:00:16]}  Ke3 {[%clk 0:00:03]} 47. Qe5+ {[%clk 0:00:16]} 1-0


[Site "https://www.chess.com"]

[Event "Titled Tuesday Blitz July 05 Early 2022"]
[White "Tanenbaum, Zachary"]
[Black "Terry, Renato"]
[WhiteFideId "2060850"]
[BlackFideId "3803457"]
[WhiteElo "2175"]
[BlackElo "2577"]
[Result "0-1"]
[Round "09"]
[TimeControl "180+1"]
[Date "2022.07.05"]
[WhiteClock "0:00:46"]
[BlackClock "0:00:57"]

1. e4 {[%clk 0:03:00]}  e6 {[%clk 0:03:00]} 2. d4 {[%clk 0:03:01]}  d5 {[%clk 0:03:00]} 3. Nc3 {[%clk 0:03:02]}  Nf6 {[%clk 0:03:01]} 4. Bg5 {[%clk 0:03:01]}  Bb4 {[%clk 0:03:01]} 5. e5 {[%clk 0:03:02]}  h6 {[%clk 0:03:02]} 6. Bd2 {[%clk 0:03:03]}  Bxc3 {[%clk 0:03:02]} 7. bxc3 {[%clk 0:03:04]}  Ne4 {[%clk 0:03:03]} 8. Qg4 {[%clk 0:03:04]}  g6 {[%clk 0:03:03]} 9. Bd3 {[%clk 0:03:05]}  Nxd2 {[%clk 0:03:04]} 10. Kxd2 {[%clk 0:03:06]}  c5 {[%clk 0:03:04]} 11. h4 {[%clk 0:03:06]}  Nc6 {[%clk 0:03:04]} 12. Nf3 {[%clk 0:03:06]}  cxd4 {[%clk 0:03:05]} 13. cxd4 {[%clk 0:03:06]}  Qa5+ {[%clk 0:03:05]} 14. c3 {[%clk 0:03:07]}  b6 {[%clk 0:03:06]} 15. Rhc1 {[%clk 0:03:03]}  Ba6 {[%clk 0:03:07]} 16. Bxa6 {[%clk 0:03:02]}  Qxa6 {[%clk 0:03:07]} 17. Qf4 {[%clk 0:03:02]}  Rc8 {[%clk 0:03:05]} 18. Ke1 {[%clk 0:03:00]}  Na5 {[%clk 0:03:00]} 19. Nd2 {[%clk 0:02:59]}  g5 {[%clk 0:02:55]} 20. Qg3 {[%clk 0:02:45]}  gxh4 {[%clk 0:02:47]} 21. Qxh4 {[%clk 0:02:45]}  Rg8 {[%clk 0:02:47]} 22. Qh3 {[%clk 0:02:43]}  Rg6 {[%clk 0:02:31]} 23. Qf3 {[%clk 0:02:41]}  h5 {[%clk 0:02:24]} 24. Rab1 {[%clk 0:02:08]}  Ke7 {[%clk 0:02:14]} 25. Rc2 {[%clk 0:01:39]}  Rcg8 {[%clk 0:02:09]} 26. g3 {[%clk 0:01:37]}  h4 {[%clk 0:02:09]} 27. Nf1 {[%clk 0:01:34]}  Nc4 {[%clk 0:01:37]} 28. Rbc1 {[%clk 0:01:33]}  Rg4 {[%clk 0:01:36]} 29. gxh4 {[%clk 0:01:11]}  Rg1 {[%clk 0:00:59]} 30. Re2 {[%clk 0:00:47]}  Rxf1+ {[%clk 0:00:56]} 31. Kxf1 {[%clk 0:00:46]}  Nd2+ {[%clk 0:00:57]} 32. Ke1 {[%clk 0:00:46]}  Nxf3+ {[%clk 0:00:57]} 0-1


[Site "https://www.chess.com"]

[Event "Titled Tuesday Blitz July 05 Early 2022"]
[White "Abrahamyan, Tatev"]
[Black "Vakhlamov, Igor L."]
[WhiteFideId "13301918"]
[BlackFideId "24126748"]
[WhiteElo "2347"]
[BlackElo "2401"]
[Result "0-1"]
[Round "10"]
[TimeControl "180+1"]
[Date "2022.07.05"]
[WhiteClock "0:00:24"]
[BlackClock "0:01:15"]

1. e4 {[%clk 0:03:00]}  c5 {[%clk 0:02:59]} 2. Nf3 {[%clk 0:03:00]}  Nc6 {[%clk 0:02:59]} 3. d4 {[%clk 0:03:01]}  cxd4 {[%clk 0:03:00]} 4. Nxd4 {[%clk 0:03:01]}  g6 {[%clk 0:03:00]} 5. Nc3 {[%clk 0:03:01]}  Bg7 {[%clk 0:03:00]} 6. Be3 {[%clk 0:03:02]}  Nf6 {[%clk 0:03:01]} 7. Bc4 {[%clk 0:03:01]}  O-O {[%clk 0:03:01]} 8. Bb3 {[%clk 0:03:01]}  a5 {[%clk 0:03:01]} 9. O-O {[%clk 0:03:00]}  Nxd4 {[%clk 0:03:01]} 10. Bxd4 {[%clk 0:02:59]}  d6 {[%clk 0:03:01]} 11. f3 {[%clk 0:02:50]}  Bd7 {[%clk 0:03:00]} 12. a4 {[%clk 0:02:50]}  Bc6 {[%clk 0:03:00]} 13. Qe2 {[%clk 0:02:43]}  Nd7 {[%clk 0:02:59]} 14. Bxg7 {[%clk 0:02:39]}  Kxg7 {[%clk 0:03:00]} 15. Bd5 {[%clk 0:02:38]}  Qb6+ {[%clk 0:02:59]} 16. Kh1 {[%clk 0:02:37]}  Qxb2 {[%clk 0:02:58]} 17. Qd2 {[%clk 0:02:15]}  Qb4 {[%clk 0:02:53]} 18. Rab1 {[%clk 0:02:06]}  Qc5 {[%clk 0:02:46]} 19. Bxc6 {[%clk 0:02:00]}  bxc6 {[%clk 0:02:47]} 20. Rb7 {[%clk 0:01:58]}  Rfd8 {[%clk 0:02:45]} 21. f4 {[%clk 0:01:58]}  Rab8 {[%clk 0:02:42]} 22. Rfb1 {[%clk 0:01:53]}  f6 {[%clk 0:02:19]} 23. h3 {[%clk 0:01:46]}  Kf7 {[%clk 0:02:11]} 24. Kh2 {[%clk 0:01:39]}  Rxb7 {[%clk 0:02:06]} 25. Rxb7 {[%clk 0:01:38]}  Nb6 {[%clk 0:02:06]} 26. Qd3 {[%clk 0:01:17]}  Rd7 {[%clk 0:01:51]} 27. Rb8 {[%clk 0:01:16]}  Nc4 {[%clk 0:01:51]} 28. Ne2 {[%clk 0:01:13]}  d5 {[%clk 0:01:37]} 29. Qb3 {[%clk 0:00:37]}  Qf2 {[%clk 0:01:21]} 30. Qd3 {[%clk 0:00:24]}  Ne3 {[%clk 0:01:15]} 0-1


[Site "https://www.chess.com"]

[Event "Titled Tuesday Blitz July 05 Early 2022"]
[White "Bharath Subramaniyam H"]
[Black "Severino, Sander"]
[WhiteFideId "46634827"]
[BlackFideId "5204100"]
[WhiteElo "2242"]
[BlackElo "2408"]
[Result "0-1"]
[Round "10"]
[TimeControl "180+1"]
[Date "2022.07.05"]
[WhiteClock "0:01:16"]
[BlackClock "0:00:59"]

1. c4 {[%clk 0:03:00]}  e5 {[%clk 0:02:59]} 2. Nf3 {[%clk 0:03:00]}  Nc6 {[%clk 0:02:58]} 3. d4 {[%clk 0:03:00]}  exd4 {[%clk 0:02:56]} 4. Nxd4 {[%clk 0:03:01]}  Nf6 {[%clk 0:02:53]} 5. Nxc6 {[%clk 0:03:01]}  bxc6 {[%clk 0:02:52]} 6. g3 {[%clk 0:03:01]}  Bc5 {[%clk 0:02:51]} 7. Bg2 {[%clk 0:03:01]}  O-O {[%clk 0:02:50]} 8. O-O {[%clk 0:03:02]}  h6 {[%clk 0:02:49]} 9. Nc3 {[%clk 0:03:02]}  Re8 {[%clk 0:02:49]} 10. b3 {[%clk 0:03:03]}  Qe7 {[%clk 0:02:44]} 11. Bb2 {[%clk 0:03:03]}  Rb8 {[%clk 0:02:32]} 12. Rc1 {[%clk 0:03:03]}  Ba3 {[%clk 0:02:24]} 13. Qd2 {[%clk 0:03:03]}  Bxb2 {[%clk 0:02:23]} 14. Qxb2 {[%clk 0:03:04]}  c5 {[%clk 0:02:23]} 15. Nb5 {[%clk 0:02:57]}  c6 {[%clk 0:02:09]} 16. Nc3 {[%clk 0:02:58]}  Bb7 {[%clk 0:02:02]} 17. Rfd1 {[%clk 0:02:58]}  d5 {[%clk 0:01:56]} 18. cxd5 {[%clk 0:02:54]}  cxd5 {[%clk 0:01:54]} 19. e3 {[%clk 0:02:53]}  Red8 {[%clk 0:01:39]} 20. Qa3 {[%clk 0:02:53]}  d4 {[%clk 0:01:31]} 21. exd4 {[%clk 0:02:39]}  Bxg2 {[%clk 0:01:30]} 22. Kxg2 {[%clk 0:02:40]}  Qb7+ {[%clk 0:01:29]} 23. d5 {[%clk 0:02:40]}  Nxd5 {[%clk 0:01:28]} 24. Nxd5 {[%clk 0:02:41]}  Rxd5 {[%clk 0:01:28]} 25. Rxd5 {[%clk 0:02:41]}  Qxd5+ {[%clk 0:01:28]} 26. Kg1 {[%clk 0:02:42]}  Re8 {[%clk 0:01:25]} 27. Qxa7 {[%clk 0:02:34]}  Re2 {[%clk 0:01:22]} 28. Rf1 {[%clk 0:02:14]}  h5 {[%clk 0:01:16]} 29. h4 {[%clk 0:02:10]}  Kh7 {[%clk 0:01:10]} 30. a4 {[%clk 0:02:02]}  Rb2 {[%clk 0:01:05]} 31. a5 {[%clk 0:02:00]}  Rxb3 {[%clk 0:01:04]} 32. Ra1 {[%clk 0:01:47]}  Qd4 {[%clk 0:01:02]} 33. Rc1 {[%clk 0:01:44]}  Rxg3+ {[%clk 0:01:01]} 34. Kf1 {[%clk 0:01:16]}  Qd3+ {[%clk 0:01:00]} 35. Ke1 {[%clk 0:01:16]}  Rg1# {[%clk 0:00:59]} 0-1


[Site "https://www.chess.com"]

[Event "Titled Tuesday Blitz July 05 Early 2022"]
[White "Dubov, Daniil"]
[Black "Shimanov, Aleksandr"]
[WhiteFideId "24126055"]
[BlackFideId "4198603"]
[WhiteElo "2791"]
[BlackElo "2605"]
[Result "1-0"]
[Round "10"]
[TimeControl "180+1"]
[Date "2022.07.05"]
[WhiteClock "0:01:51"]
[BlackClock "0:00:48"]

1. e4 {[%clk 0:03:00]}  c6 {[%clk 0:02:49]} 2. d4 {[%clk 0:03:00]}  d5 {[%clk 0:02:50]} 3. e5 {[%clk 0:03:00]}  Bf5 {[%clk 0:02:50]} 4. Nf3 {[%clk 0:03:00]}  e6 {[%clk 0:02:50]} 5. Be2 {[%clk 0:03:00]}  Ne7 {[%clk 0:02:47]} 6. Nbd2 {[%clk 0:02:58]}  Nd7 {[%clk 0:02:28]} 7. O-O {[%clk 0:02:56]}  h6 {[%clk 0:02:27]} 8. Re1 {[%clk 0:02:56]}  a6 {[%clk 0:02:14]} 9. Nf1 {[%clk 0:02:54]}  c5 {[%clk 0:02:11]} 10. c4 {[%clk 0:02:51]}  dxc4 {[%clk 0:02:10]} 11. Ne3 {[%clk 0:02:49]}  Be4 {[%clk 0:02:00]} 12. Nd2 {[%clk 0:02:41]}  Bc6 {[%clk 0:01:57]} 13. Ndxc4 {[%clk 0:02:39]}  Nd5 {[%clk 0:01:52]} 14. Bf3 {[%clk 0:02:18]}  N5b6 {[%clk 0:01:28]} 15. d5 {[%clk 0:01:58]}  exd5 {[%clk 0:01:10]} 16. e6 {[%clk 0:01:57]}  Nf6 {[%clk 0:01:06]} 17. Ne5 {[%clk 0:01:53]}  fxe6 {[%clk 0:00:49]} 18. Bh5+ {[%clk 0:01:52]}  Ke7 {[%clk 0:00:50]} 19. Nf5+ {[%clk 0:01:51]}  exf5 {[%clk 0:00:48]} 20. Nxc6+ {[%clk 0:01:51]} 1-0


[Site "https://www.chess.com"]

[Event "Titled Tuesday Blitz July 05 Early 2022"]
[White "Hansen, Sune Berg"]
[Black "Kozlov, Gennady"]
[WhiteFideId "1400266"]
[BlackFideId "4191668"]
[WhiteElo "2659"]
[BlackElo "2392"]
[Result "1-0"]
[Round "10"]
[TimeControl "180+1"]
[Date "2022.07.05"]
[WhiteClock "0:00:59"]
[BlackClock "0:02:11"]

1. Nf3 {[%clk 0:03:00]}  d5 {[%clk 0:02:59]} 2. g3 {[%clk 0:03:00]}  c6 {[%clk 0:02:59]} 3. Bg2 {[%clk 0:03:00]}  Bf5 {[%clk 0:02:59]} 4. O-O {[%clk 0:02:59]}  h6 {[%clk 0:02:59]} 5. c4 {[%clk 0:02:59]}  e6 {[%clk 0:02:59]} 6. Qb3 {[%clk 0:02:59]}  Qb6 {[%clk 0:02:59]} 7. d3 {[%clk 0:02:58]}  Nf6 {[%clk 0:02:58]} 8. cxd5 {[%clk 0:02:58]}  exd5 {[%clk 0:02:58]} 9. Qc2 {[%clk 0:02:58]}  Bd6 {[%clk 0:02:57]} 10. Nc3 {[%clk 0:02:58]}  O-O {[%clk 0:02:57]} 11. e4 {[%clk 0:02:58]}  dxe4 {[%clk 0:02:57]} 12. dxe4 {[%clk 0:02:58]}  Bh7 {[%clk 0:02:57]} 13. Be3 {[%clk 0:02:58]}  Qc7 {[%clk 0:02:56]} 14. Nd4 {[%clk 0:02:52]}  Nbd7 {[%clk 0:02:55]} 15. h3 {[%clk 0:02:49]}  Rfe8 {[%clk 0:02:54]} 16. Rad1 {[%clk 0:02:36]}  Rad8 {[%clk 0:02:50]} 17. Rfe1 {[%clk 0:02:22]}  a6 {[%clk 0:02:50]} 18. f4 {[%clk 0:02:12]}  Nc5 {[%clk 0:02:48]} 19. Bf2 {[%clk 0:02:11]}  b5 {[%clk 0:02:47]} 20. a3 {[%clk 0:02:10]}  a5 {[%clk 0:02:47]} 21. Ncxb5 {[%clk 0:01:58]}  cxb5 {[%clk 0:02:46]} 22. Nxb5 {[%clk 0:01:58]}  Ncxe4 {[%clk 0:02:31]} 23. Nxc7 {[%clk 0:01:55]}  Nxf2 {[%clk 0:02:31]} 24. Rxe8+ {[%clk 0:01:50]}  Nxe8 {[%clk 0:02:24]} 25. Qxf2 {[%clk 0:01:35]}  Nxc7 {[%clk 0:02:21]} 26. Kh2 {[%clk 0:01:32]}  Kf8 {[%clk 0:02:18]} 27. Qb6 {[%clk 0:01:31]}  Ke7 {[%clk 0:02:18]} 28. Re1+ {[%clk 0:01:29]}  Ne6 {[%clk 0:02:18]} 29. Qxa5 {[%clk 0:01:22]}  Rc8 {[%clk 0:02:17]} 30. f5 {[%clk 0:01:20]}  Rc5 {[%clk 0:02:13]} 31. Qxc5 {[%clk 0:01:17]}  Bxc5 {[%clk 0:02:13]} 32. fxe6 {[%clk 0:01:17]}  fxe6 {[%clk 0:02:14]} 33. Bd5 {[%clk 0:01:16]}  Bg8 {[%clk 0:02:13]} 34. Bc4 {[%clk 0:01:16]}  Kd6 {[%clk 0:02:13]} 35. b4 {[%clk 0:01:14]}  Bd4 {[%clk 0:02:13]} 36. Kg2 {[%clk 0:01:13]}  Be5 {[%clk 0:02:13]} 37. a4 {[%clk 0:01:06]}  Bh7 {[%clk 0:02:13]} 38. Rd1+ {[%clk 0:01:03]}  Ke7 {[%clk 0:02:13]} 39. Kf3 {[%clk 0:01:04]}  Bc3 {[%clk 0:02:13]} 40. b5 {[%clk 0:01:03]}  e5 {[%clk 0:02:12]} 41. Bd3 {[%clk 0:01:01]}  Bg8 {[%clk 0:02:11]} 42. b6 {[%clk 0:00:59]} 1-0


[Site "https://www.chess.com"]

[Event "Titled Tuesday Blitz July 05 Early 2022"]
[White "Kamsky, Gata"]
[Black "Andreikin, Dmitry"]
[WhiteFideId "2000024"]
[BlackFideId "4158814"]
[WhiteElo "2645"]
[BlackElo "2736"]
[Result "0-1"]
[Round "10"]
[TimeControl "180+1"]
[Date "2022.07.05"]
[WhiteClock "0:00:01"]
[BlackClock "0:01:07"]

1. d4 {[%clk 0:03:00]}  Nf6 {[%clk 0:03:00]} 2. Nf3 {[%clk 0:02:59]}  e6 {[%clk 0:03:01]} 3. Bf4 {[%clk 0:02:58]}  Nh5 {[%clk 0:03:01]} 4. Bg3 {[%clk 0:02:50]}  Nxg3 {[%clk 0:03:00]} 5. hxg3 {[%clk 0:02:49]}  g6 {[%clk 0:03:01]} 6. e4 {[%clk 0:02:49]}  Bg7 {[%clk 0:03:01]} 7. c3 {[%clk 0:02:49]}  d6 {[%clk 0:03:01]} 8. Nbd2 {[%clk 0:02:47]}  Nd7 {[%clk 0:03:01]} 9. Bd3 {[%clk 0:02:46]}  b6 {[%clk 0:02:59]} 10. Qe2 {[%clk 0:02:43]}  a6 {[%clk 0:02:59]} 11. O-O-O {[%clk 0:02:23]}  Bb7 {[%clk 0:02:58]} 12. Kb1 {[%clk 0:02:21]}  b5 {[%clk 0:02:58]} 13. Rh4 {[%clk 0:02:13]}  h6 {[%clk 0:02:52]} 14. g4 {[%clk 0:02:05]}  c5 {[%clk 0:02:49]} 15. Qe3 {[%clk 0:01:58]}  b4 {[%clk 0:02:43]} 16. cxb4 {[%clk 0:01:50]}  Bxd4 {[%clk 0:02:40]} 17. Qe2 {[%clk 0:01:47]}  Bg7 {[%clk 0:02:37]} 18. Nc4 {[%clk 0:01:44]}  Qe7 {[%clk 0:02:28]} 19. Bc2 {[%clk 0:01:42]}  d5 {[%clk 0:02:22]} 20. Na5 {[%clk 0:01:39]}  Rb8 {[%clk 0:02:18]} 21. Nxb7 {[%clk 0:00:41]}  Rxb7 {[%clk 0:02:19]} 22. Qxa6 {[%clk 0:00:41]}  Rxb4 {[%clk 0:01:59]} 23. Qc8+ {[%clk 0:00:39]}  Qd8 {[%clk 0:01:59]} 24. Qxd8+ {[%clk 0:00:39]}  Kxd8 {[%clk 0:02:00]} 25. exd5 {[%clk 0:00:38]}  Rxb2+ {[%clk 0:01:54]} 26. Kc1 {[%clk 0:00:37]}  Rxa2 {[%clk 0:01:33]} 27. dxe6 {[%clk 0:00:35]}  fxe6 {[%clk 0:01:33]} 28. g5 {[%clk 0:00:27]}  Ke7 {[%clk 0:01:33]} 29. Ra4 {[%clk 0:00:24]}  Rxa4 {[%clk 0:01:26]} 30. Bxa4 {[%clk 0:00:24]}  Nb6 {[%clk 0:01:26]} 31. Bc2 {[%clk 0:00:22]}  hxg5 {[%clk 0:01:25]} 32. Bxg6 {[%clk 0:00:17]}  Nd5 {[%clk 0:01:25]} 33. Kd2 {[%clk 0:00:09]}  g4 {[%clk 0:01:18]} 34. Ng1 {[%clk 0:00:06]}  Bd4 {[%clk 0:01:11]} 35. Ke1 {[%clk 0:00:05]}  Rf8 {[%clk 0:01:11]} 36. Ne2 {[%clk 0:00:01]}  Bxf2+ {[%clk 0:01:10]} 37. Kd2 {[%clk 0:00:01]}  Ne3 {[%clk 0:01:07]} 38. Ra1 {[%clk 0:00:01]}  Rd8+ {[%clk 0:01:08]} 39. Kc3 {[%clk 0:00:01]}  Nxg2 {[%clk 0:01:07]} 0-1


[Site "https://www.chess.com"]

[Event "Titled Tuesday Blitz July 05 Early 2022"]
[White "Kozlov, Oleg"]
[Black "Cherniaiev, Tykhon"]
[WhiteFideId "4104544"]
[BlackFideId "14182360"]
[WhiteElo "2132"]
[BlackElo "2263"]
[Result "0-1"]
[Round "10"]
[TimeControl "180+1"]
[Date "2022.07.05"]
[WhiteClock "0:00:04"]
[BlackClock "0:00:48"]

1. d4 {[%clk 0:02:50]}  Nf6 {[%clk 0:03:00]} 2. c4 {[%clk 0:02:49]}  e6 {[%clk 0:03:00]} 3. g3 {[%clk 0:02:48]}  d5 {[%clk 0:03:00]} 4. Bg2 {[%clk 0:02:48]}  Be7 {[%clk 0:03:01]} 5. Nf3 {[%clk 0:02:49]}  O-O {[%clk 0:03:01]} 6. Qc2 {[%clk 0:02:49]}  dxc4 {[%clk 0:03:01]} 7. Qxc4 {[%clk 0:02:49]}  a6 {[%clk 0:03:01]} 8. Bf4 {[%clk 0:02:49]}  Bd6 {[%clk 0:02:51]} 9. Nc3 {[%clk 0:02:49]}  Bxf4 {[%clk 0:02:47]} 10. gxf4 {[%clk 0:02:50]}  Nd5 {[%clk 0:02:47]} 11. e3 {[%clk 0:02:38]}  b5 {[%clk 0:02:38]} 12. Qd3 {[%clk 0:02:38]}  Bb7 {[%clk 0:02:37]} 13. Ng5 {[%clk 0:02:26]}  g6 {[%clk 0:02:32]} 14. Nxd5 {[%clk 0:02:08]}  Bxd5 {[%clk 0:02:31]} 15. Bxd5 {[%clk 0:01:53]}  Qxd5 {[%clk 0:02:28]} 16. Qe4 {[%clk 0:01:53]}  Nd7 {[%clk 0:02:17]} 17. Qxd5 {[%clk 0:01:52]}  exd5 {[%clk 0:02:18]} 18. Rc1 {[%clk 0:01:52]}  Rfc8 {[%clk 0:02:15]} 19. Rc6 {[%clk 0:01:50]}  Nb8 {[%clk 0:02:11]} 20. Rc5 {[%clk 0:01:47]}  c6 {[%clk 0:02:11]} 21. Ke2 {[%clk 0:01:42]}  Nd7 {[%clk 0:02:11]} 22. Rc3 {[%clk 0:01:39]}  c5 {[%clk 0:02:09]} 23. dxc5 {[%clk 0:01:40]}  Rxc5 {[%clk 0:02:10]} 24. Rxc5 {[%clk 0:01:38]}  Nxc5 {[%clk 0:02:11]} 25. Rc1 {[%clk 0:01:35]}  Ne4 {[%clk 0:01:46]} 26. Nf3 {[%clk 0:01:34]}  Re8 {[%clk 0:01:38]} 27. Nd4 {[%clk 0:01:25]}  b4 {[%clk 0:01:23]} 28. Nc6 {[%clk 0:01:15]}  a5 {[%clk 0:01:18]} 29. Rd1 {[%clk 0:00:48]}  a4 {[%clk 0:01:10]} 30. Nxb4 {[%clk 0:00:34]}  a3 {[%clk 0:01:10]} 31. Nxd5 {[%clk 0:00:27]}  axb2 {[%clk 0:01:10]} 32. f3 {[%clk 0:00:27]}  Rb8 {[%clk 0:01:07]} 33. Rb1 {[%clk 0:00:23]}  Nc5 {[%clk 0:01:06]} 34. Kd2 {[%clk 0:00:20]}  Rd8 {[%clk 0:00:54]} 35. e4 {[%clk 0:00:19]}  f5 {[%clk 0:00:55]} 36. Ke3 {[%clk 0:00:14]}  fxe4 {[%clk 0:00:54]} 37. fxe4 {[%clk 0:00:15]}  Na4 {[%clk 0:00:54]} 38. Kd4 {[%clk 0:00:12]}  Kf7 {[%clk 0:00:54]} 39. Kc4 {[%clk 0:00:11]}  Rc8+ {[%clk 0:00:48]} 40. Kb4 {[%clk 0:00:04]}  Rc1 {[%clk 0:00:48]} 0-1


[Site "https://www.chess.com"]